Cogmind - Beta 14 @@@ ROGUE MODE // 2025.01.01 @ 12:36:26 Player: Cog on my mind Result: Destroyed by G-47 Trooper with Particle Gun Performance ------------- Evolutions (0) 0 Regions Visited (2) 400 Robots Destroyed (18) 90 Value Destroyed (360) 360 Prototype IDs (4) 80 Alien Tech Used (0) 0 Bonus (0) 0 TOTAL SCORE: 930 Bonus ------- None Cogmind --------- Core Integrity 0/250 Matter 244/300 Energy 250/250 System Corruption 1% Temperature Cool (39) Movement Walking (120) Location -10/Mines Parts ------- > --- POWER (1) -------- Ion Engine > --- PROPULSION (2) --- Aluminum Leg Aluminum Leg > --- UTILITY (2) ------ Medium Storage Unit > --- WEAPON (2) ------- Light Assault Rifle Light Assault Rifle > --- INVENTORY (10) --- Ion Engine Aluminum Leg Wheel Wheel Large Storage Unit Large Matter Pod (92) Signal Interpreter Improved Terrain Scanner Hacking Suite Peak State ------------ > --- POWER ------------ Ion Engine > --- PROPULSION ------- Aluminum Leg Aluminum Leg > --- UTILITY ---------- Medium Storage Unit Improved Terrain Scanner > --- WEAPON ----------- Light Assault Rifle Light Assault Rifle > --- INVENTORY -------- Ion Engine Aluminum Leg Wheel Wheel Large Storage Unit Large Matter Pod Signal Interpreter Light Armor Plating Hacking Suite [Rating: 10] Favorites ----------- Power Ion Engine Engine Ion Engine Propulsion Aluminum Leg Leg Aluminum Leg Utility Medium Storage Unit Device Seismic Detector Storage Medium Storage Unit Protection Light Armor Plating Weapon Assault Rifle Ballistic Gun Assault Rifle Build | -11 -10 -10 ------- Run | Yrd Mat Min Slots Evolved . | . . . Power . | . . . Propulsion . | . . . Utility . | . . . Weapon . | . . . Parts Attached 18 | 7 9 2 Power 4 | 1 3 . Engine 4 | 1 3 . Core . | . . . Reactor . | . . . Propulsion 5 | 2 3 . Treads . | . . . Leg 5 | 2 3 . Wheel . | . . . Hover . | . . . Flight . | . . . Utility 5 | 2 1 2 Device 2 | 1 . 1 Storage 2 | 1 1 . Processor . | . . . Hackware . | . . . Protection 1 | . . 1 Artifact . | . . . Weapon 4 | 2 2 . Energy Gun . | . . . Energy Cannon . | . . . Ballistic Gun 4 | 2 2 . Ballistic Cannon . | . . . Launcher . | . . . Special Weapon . | . . . Impact Weapon . | . . . Slashing Weapon . | . . . Piercing Weapon . | . . . Special Melee Weapon . | . . . Unidentified Prototypes . | . . . Parts Lost 7 | . 6 1 Power 1 | . 1 . Propulsion 2 | . 2 . Utility 2 | . 1 1 Weapon 2 | . 2 . Highest Loss Streak 5 | . 5 1 To Critical Strikes . | . . . Average Slot Usage (%) 91 | . 90 96 Engine 13 | . 13 14 Leg 27 | . 27 28 Device 8 | . 8 3 Storage 14 | . 14 14 Ballistic Gun 26 | . 25 28 Peak Build Rating 10 | 7 8 10 Average Rating 6 | 5 6 8 On Entrance 4 | . 7 7 Naked Turns . | . . . Heaviest Build 20 | 13 20 20 Greatest Support 20 | 20 20 20 Greatest Overweight (x) 4 | . 4 . Average Overweight (x) . | . . . Largest Inventory Capacity 10 | 8 10 10 Average Capacity 9 | 7 9 10 Most Carried 10 | 3 10 9 Average Carried 6 | 1 7 9 Final Capacity 10 | 8 10 10 Final Carried 10 | 3 10 9 Class Distribution -------------------- 88% | Mutant 11% | Scavenger-Mutant Dominant Class ---------------- Mutant | -10/Materials Mutant | -10/Mines Resources | -11 -10 -10 ----------- Run | Yrd Mat Min Matter Collected 756 | 300 456 . Remotely . | . . . Salvage Created 625 | 118 507 . Parts 35 | 5 30 . Haulers Intercepted 1 | . 1 . Recyclers Shooed . | . . . Parts Field Recycled . | . . . Retrieved Matter . | . . . Parts Self-Destructed . | . . . Prevented . | . . . Kills | -11 -10 -10 ------- Run | Yrd Mat Min Combat Hostiles Destroyed 11 | . 11 . Melee 2 | . 2 . Guns 9 | . 9 . Classes Destroyed 7 | 2 5 . Tunneler 1 | 1 . . Hauler 1 | . 1 . Recycler 2 | 1 1 . Operator 1 | . 1 . Watcher 2 | . 2 . Swarmer 4 | . 4 . Grunt 7 | . 7 . Best Kill Streak 3 | 1 3 . Combat Bots Only 2 | . 2 . Max Kills in Single Turn 1 | 1 1 . Gunslinging . | . . . Exploded . | . . . Melee 1 | . 1 . Uniques/NPCs Destroyed . | . . . Combat | -11 -10 -10 -------- Run | Yrd Mat Min Hostile Shots Fired 121 | . 106 15 Missed 34 | . 33 1 Damage Taken 977 | . 762 215 Core 254 | . 162 92 Absorbed by Shields . | . . . Core Remaining (%) 100 | 100 . . Volleys Fired 82 | 5 67 10 Largest 2 | 2 2 2 Hottest 40 | 40 40 40 Shots Fired 155 | 10 126 19 Gun 155 | 10 126 19 Cannon . | . . . Launcher . | . . . Special . | . . . Kinetic 155 | 10 126 19 Thermal . | . . . Explosive . | . . . Electromagnetic . | . . . Robot Hit Streak 11 | 4 11 5 Robot Miss Streak 6 | 1 6 3 Penetration Max . | . . . Secondary Targets . | . . . Shots Hit Robots 87 | 6 72 9 Core Hits 38 | 2 32 4 Critical Kills . | . . . Critical Parts Destroyed 1 | . 1 . Critical Strikes 1 | . 1 . Destroy 1 | . 1 . Melee Attacks . | . . . Impact . | . . . Slashing . | . . . Piercing . | . . . Sneak Attacks . | . . . Combat Hostiles . | . . . Follow-up Attacks . | . . . Damage Inflicted 1107 | 80 959 68 Guns 1068 | 80 920 68 Cannons . | . . . Explosions . | . . . Melee . | . . . Ramming 39 | . 39 . Kinetic 1068 | 80 920 68 Thermal . | . . . Explosive . | . . . Electromagnetic . | . . . Impact . | . . . Slashing . | . . . Piercing . | . . . Highest Corruption 1 | . 1 1 Average Corruption 1 | . 1 1 Corruption Purged . | . . . Corruption Blocked . | . . . Effects 6 | . 5 1 Message Errors 2 | . 2 . Matter Fused 2 | . 2 . Data Loss (minor) 1 | . 1 . Weapon Failures 1 | . . 1 Overload Shots . | . . . Overflow Damage . | . . . Projectiles . | . . . Explosions . | . . . Melee . | . . . Knockbacks 1 | . 1 . Impact 1 | . 1 . Kinetic . | . . . Secondary . | . . . Self-Inflicted Damage . | . . . Shots . | . . . Rammed . | . . . Targets Rammed 14 | . 14 . Kicked 14 | . 14 . Crushed . | . . . Highest Temperature 34 | . 11 34 Average Temperature 14 | . 3 17 Received Heat Transfer 501 | . 360 141 Siege Activations . | . . . Robots Corrupted . | . . . Combat Hostiles . | . . . Parts Fried . | . . . Impact Corruptions . | . . . Robots Melted . | . . . Combat Hostiles . | . . . Parts Melted . | . . . Heat Transferred . | . . . Parts Sabotaged . | . . . Parts Stolen . | . . . Parts Stripped . | . . . Power Chain Reactions . | . . . Alert | -11 -10 -10 ------- Run | Yrd Mat Min Peak Influence 195 | 10 195 15 Initial 6 | . 6 . Average 70 | 3 78 . Maximum Alert Level . | . . . Low Security (%) 100 | 100 100 100 Level 1 . | . . . Level 2 . | . . . Level 3 . | . . . Level 4 . | . . . Level 5 . | . . . High Security . | . . . Max Security . | . . . Squads Dispatched 2 | . 2 . Investigation 1 | . 1 . Extermination . | . . . Reinforcement 1 | . 1 . Assault . | . . . Garrison . | . . . Intercept . | . . . Searches Triggered . | . . . Construction Impeded . | . . . Haulers Reinforced . | . . . Active Scanning Responses . | . . . Cargo Convoy Interrupts . | . . . Stealth | -11 -10 -10 --------- Run | Yrd Mat Min Distress Signals 1 | . 1 . Communications Jammed . | . . . Distress Signals . | . . . Times Spotted 28 | . 26 2 Peak Tracking Total 6 | . 6 2 Tactical Retreats 4 | . 3 1 Traps | -11 -10 -10 ------- Run | Yrd Mat Min Traps Triggered 1 | . 1 . Indirectly . | . . . Trap Hack Attempts . | . . . Triggered . | . . . Disarmed . | . . . Reprogrammed . | . . . Reused . | . . . Traps Extracted . | . . . Installed . | . . . Triggered . | . . . Machines | -11 -10 -10 ---------- Run | Yrd Mat Min Machines Disabled . | . . . Max in Single Turn . | . . . Machines Repaired . | . . . Machines Dismantled . | . . . Machines Sabotaged . | . . . Overloaded Fab Kills . | . . . Hacking | -11 -10 -10 --------- Run | Yrd Mat Min Machines Accessed 6 | . 6 . Terminals 5 | . 5 . Fabricators . | . . . Repair Stations . | . . . Recycling Units 1 | . 1 . Scanalyzers . | . . . Garrison Access . | . . . Total Hacks 19 | . 19 . Successful 10 | . 10 . Failed 9 | . 9 . Catastrophic 2 | . 2 . Database Lockouts . | . . . Manual 12 | . 12 . Terminals 17 | . 17 . Fabricators . | . . . Repair Stations . | . . . Recycling Units 2 | . 2 . Scanalyzers . | . . . Garrison Access . | . . . Terminal Hacks 5 | . 5 . Prototype ID Bank 2 | . 2 . Alert Level 1 | . 1 . Locate Traps 1 | . 1 . Hauler Manifests 1 | . 1 . Fabricator Hacks . | . . . Repair Station Hacks . | . . . Recycling Unit Hacks 1 | . 1 . Retrieve Components 1 | . 1 . Scanalyzer . | . . . Garrison Access Hacks . | . . . Unauthorized Hacks 4 | . 4 . Terminals 4 | . 4 . Track 1 | . 1 . Botnet 3 | . 3 . Fabricators . | . . . Repair Stations . | . . . Recycling Units . | . . . Scanalyzers . | . . . Garrison Access . | . . . Data Cores Recovered . | . . . Used . | . . . Hacking Detections 5 | . 5 . Full Trace Events 3 | . 3 . Feedback Events 1 | . 1 . Corruption 1 | . 1 . Feedback Blocked . | . . . Robot Schematics Acquired . | . . . Robots Built . | . . . Authchips . | . . . Time . | . . . Total Robot Build Rating . | . . . Part Schematics Acquired . | . . . Parts Built . | . . . Authchips . | . . . Time . | . . . Total Part Build Rating . | . . . Parts Repaired . | . . . Time . | . . . Parts Recycled . | . . . Recycled Matter . | . . . Retrieved Matter . | . . . Retrieved Components 9 | . 9 . Parts Scanalyzed . | . . . Part Schematics Acquired . | . . . Parts Damaged . | . . . Bothacking | -11 -10 -10 ------------ Run | Yrd Mat Min Used RIF Installer . | . . . Robots Hacked . | . . . Non-combat . | . . . Combat . | . . . Robot Hacks Applied . | . . . Relay Couplers Released . | . . . Fabnet Peak Effective % . | . . . Robots Rewired . | . . . Allies Hacked . | . . . Hacks Repelled . | . . . Allies | -11 -10 -10 -------- Run | Yrd Mat Min Total Allies . | . . . Largest Group . | . . . Highest-Rated Group . | . . . Highest-Rated Ally . | . . . Total Orders . | . . . Ally Attacks . | . . . Total Damage . | . . . Kills . | . . . Allies Corrupted . | . . . Allies Melted . | . . . Intel | -11 -10 -10 ------- Run | Yrd Mat Min Robot Analysis Total . | . . . Derelict Logs Recovered . | . . . Drone Launches . | . . . Drone Recoveries . | . . . Exploration | -11 -10 -10 ------------- Run | Yrd Mat Min Turns Passed 1355 | 91 1219 45 Spaces Moved 809 | 54 744 11 Core 8 | 7 1 . Treads . | . . . Legs 801 | 47 743 11 Wheels . | . . . Hover . | . . . Flight . | . . . Fastest Speed 50 | 50 120 120 Average Speed 119 | 110 120 120 Slowest Speed 250 | 120 250 120 Overloaded Moves . | . . . Propulsion Burnouts . | . . . Robots Hopped . | . . . Cave-ins Triggered . | . . . Exploration Rate (%) 34 | 3 95 6 Regions Visited 2 Branch Regions 1 Pre-discovered Areas . | . . . Known Exits Taken . | . . . Unknown Exits Taken 2 | 1 1 . Scrap Searched . | . . . Spaces Dug . | . . . Terrain Destroyed . | . . . Melee . | . . . Projectile . | . . . AOE . | . . . Terrain Rammed . | . . . Walls Destroyed . | . . . Machines Disabled . | . . . Actions | -11 -10 -10 --------- Run | Yrd Mat Min Total 1035 | 71 937 27 Wait 104 | 3 97 4 Move 807 | 53 743 11 Hop . | . . . Pick Up 8 | 3 5 . Fast Attach 12 | 7 5 . Attach 1 | . . 1 Detach . | . . . Swap 5 | . 4 1 Drop 2 | . 2 . Fire 82 | 5 67 10 Melee . | . . . Ram . | . . . Kick 14 | . 14 . Crush . | . . . Escape Stasis . | . . . Rewire . | . . . Trap . | . . . Miscellaneous . | . . . Route ------- -11/Scrapyard -10/Materials (discovered 5 exits: [*Mat x3] / [*Min x2]) -10/Mines History --------- Turn | Location | Event 4 | -11/Scrapyard | Discovered new exit (range 16) 92 | -11/Scrapyard | Entered Materials 110 | -10/Materials | Discovered new exit (range 6) 248 | -10/Materials | Discovered new exit (range 16) 309 | -10/Materials | Build established: Mutant 682 | -10/Materials | Discovered new exit (range 16) 771 | -10/Materials | Discovered new exit (range 15) 844 | -10/Materials | Core integrity fell below 50% 885 | -10/Materials | Lost 5 parts (2n1u2w) 1179 | -10/Materials | Discovered new exit (range 4) 1311 | -10/Materials | Entered Mines 1339 | -10/Mines | Core integrity fell below 20% 1356 | -10/Mines | Destroyed by G-47 Trooper with Particle Gun Last Messages --------------- 00932_ Acquired 18 matter. 00934_ K-01 Serf collects debris. 00948_ Acquired Lgt. Assault Rifle. 00977_ T-07 Excavator is excavating. 01017_ Kicked W-16 Scout out of the way. 01054_ System corrupted: Component data lost. 01091_ 2W/|FR1C1CP,9CQTH#DA3O/DCIAJ9G QCYM>&V 01139_ Electrolysis Chamber comes online. 01142_ System corrupted: Matter fused (-6). 01179_ EXIT=FOUND 01204_ K-01 Serf collects debris. 01239_ Acquired 15 matter. 01283_ K-01 Serf cleans the Material Compactor. 01308_ K-01 Serf cleans the Machine. LOCATION=UNKNOWN GOAL=ESCAPE 01344_ System corrupted: Lgt. Assault Rifle jammed. 01348_ Lgt. Armor Plating destroyed. 01356_ Critical hit (Burn: +37). Map ----- +----------------------------------------------------+ | ?????????????????????????????????????????????????? | | ?????????????????????????????????????????????????? | | ?????????????????????????????????????????????????? | | ?????????????????????????????????????????????????? | | ?????????????????????????????????????????????????? | | ?????????????????????????????????????????????????? | | ?????????????????????????????????????????????????? | | ?????????????????????????????????????????????????? | | ???????????????????????????????????#?????????????? | | ?????????????????????????????????????????????????? | | ???????????????????????????????????? ????????????? | | ?????????????????????????????????????????????????? | | ?????????????????????????????? ??????????????????? | | ??????????????????????????????#??????????????????? | | ?????????????????????????????????????????? ??????? | | ?????????????????????????????????????????????????? | | ?????????????? ?????????????????????#????????????? | | ????????????????????????????????####?????????????? | | ???????????????????????????????## ##????????????? | | ????????????#????????????????### #????????????? | | ?????????????????????????????# #????????????? | | ????????????????????????????## #????????????? | | ?????????????????????????#### #????????????? | | ???????????????# ###### ##????????????? | | ????????????# g ###?????????????? | | ???????????# ###@ ##???????????????? | | ?????????????? ?????# # #??????#?????????? | | ????????????? ?????????## ## #????????????????? | | ?????????????????????????###### #????????????????? | | ??????????????????????????????# #????????????????? | | ??????????????????????????????# #????????????????? | | ?????????????????????????????? #????????????????? | | ?????????????????????????????? ????????????????? | | ??????????????????#??????????? ????????????????? | | ?????????????????????????????? ????????????????? | | ?????????????????????????????? ????????????????? | | ????????????????????????#?????# ????????????????? | | ???????????????????????????????# ????????????????? | | ?????????????????????????????????????????????????? | | ?????????????????????????????????????????????????? | | ?????????????????????????????????????????????????? | | ?????????????????????????????????????????????????? | | ?????????????????????????????????????????????????? | | ?????????????????????????????????????????????????? | | ?????????????????????????????????????????????????? | | ?????????????????????????????????????????????????? | | ?????????????????????????????????????????????????? | | ?????????????????????????????????????????????????? | | ?????????????????????????????????????????????????? | | ?????????????????????????????????????????????????? | +----------------------------------------------------+ Best States ------------- Heat Dissipation 25 Energy Generation 10 Energy Capacity 250 Matter Stores 300 Matter Capacity 300 Sight Range 16 Terrain Scan Range 16 Terrain Scan Density 10 Armor Coverage 150 Evasion (%) 55 Item Schematics ----------------- None Robot Schematics ------------------ None Fabricated ------------ Nothing Alien Tech Used ----------------- None Achievements -------------- None Challenges ------------ None Game ------ Seed RingAlphaSpiker Manual? 0 Play Time 00:13:05 Cumulative 68.5 hours Start 2025.01.01 @ 12:23:26 End 2025.01.01 @ 12:36:26 Sessions 1 Manual Loads 0 Difficulty Rogue Special Mode None Game No. 11 Rogue 11 Adventurer 0 Explorer 0 Win Type - Total 4 Types 2/0/1/1/0/0/0/0/0 Lore% 39 Gallery% 43 Achievement% 51 Wizard Run 0 Options --------- Layout 1 ASCII 0 Keyboard 0 Movement Mouse Keybinds 0 Fullscreen 1 Font 24/Smallcaps Map View 50x35 Zoom Use 0% Tactical HUD 1 Map Filters NONE Filters NONE Steam 1 RUN: 192c7691-2830-4c2a-9c44-641bb6280802